bitfinex/quotes_BTCUSD_20241222
["timestamp","ask_amount","ask_price","bid_price","bid_amount"]
[1734843002182,0.22732178,96348.0,96337.0,0.0338551]
[1734843002386,0.01919537,96347.0,96337.0,0.0338551]
[1734843003050,0.01919537,96346.0,96337.0,0.0338551]
[1734843003822,0.29955454,96344.0,96337.0,0.0338551]
[1734843004087,0.01919537,96343.0,96337.0,0.0338551]
[1734843004437,0.01919537,96343.0,96337.0,0.001]
[1734843004636,0.01919537,96342.0,96337.0,0.001]
[1734843004837,0.43438237,96342.0,96337.0,0.001]
[1734843005063,0.207598,96340.0,96337.0,0.001]
[1734843005680,0.207602,96338.0,96334.0,0.083]
[1734843006042,0.207598,96340.0,96337.0,0.0020857]
[1734843006461,0.01914184,96339.0,96337.0,8.57e-05]
[1734843006865,0.22674384,96338.0,96337.0,0.0030857]
[1734843007274,0.207602,96338.0,96337.0,0.0030857]
[1734843007475,0.207602,96338.0,96337.0,8.57e-05]
[1734843007603,0.22674384,96338.0,96337.0,8.57e-05]
[1734843008008,0.01914184,96338.0,96337.0,8.57e-05]
[1734843008274,0.01914184,96339.0,96337.0,8.57e-05]
[1734843008450,0.207595,96341.0,96337.0,8.57e-05]
[1734843009237,0.207595,96341.0,96337.0,0.0010857]
[1734843009666,0.01914184,96342.0,96337.0,8.57e-05]
[1734843010415,0.207585,96346.0,96337.0,8.57e-05]
[1734843011003,0.01914184,96346.0,96337.0,8.57e-05]
[1734843011204,0.207587,96345.0,96337.0,8.57e-05]
[1734843011383,0.207602,96338.0,96337.0,8.57e-05]
[1734843013128,0.207602,96338.0,96337.0,0.0020857]
[1734843013944,0.22674384,96338.0,96337.0,0.0030857]
[1734843014474,0.01914184,96343.0,96337.0,0.0795857]
[1734843014655,0.01914184,96343.0,96338.0,0.51754828]
[1734843014957,0.09196554,96349.0,96338.0,0.51754828]
[1734843015745,0.34552331,96351.0,96338.0,0.10234628]
[1734843015917,0.34552331,96351.0,96337.0,0.0795857]
[1734843015918,0.207575,96351.0,96337.0,0.07862357]
[1734843016117,0.207583,96347.0,96337.0,0.07862357]
[1734843016320,0.207583,96347.0,96337.0,0.0765857]
[1734843016865,0.207594,96342.0,96337.0,0.0765857]
[1734843017758,0.415188,96342.0,96337.0,8.57e-05]
[1734843019311,0.416188,96342.0,96337.0,8.57e-05]
[1734843020867,0.001,96342.0,96338.0,0.0765]
[1734843021271,0.01915118,96341.0,96338.0,0.0765]
[1734843021878,0.09196554,96352.0,96339.0,0.2076]
[1734843022097,0.20758,96349.0,96338.0,0.0765]
[1734843022295,0.20758,96349.0,96338.0,0.0775]
[1734843022490,0.20758,96349.0,96338.0,0.0765]
[1734843022695,0.20758,96349.0,96338.0,0.0775]
[1734843022896,0.20758,96349.0,96338.0,0.0805]
[1734843023095,0.20758,96349.0,96338.0,0.0775]
[1734843023314,0.207583,96347.0,96338.0,0.0765]
[1734843023931,0.207585,96346.0,96337.0,8.57e-05]
[1734843025414,0.207585,96346.0,96331.0,0.04845082]
[1734843025612,0.207585,96346.0,96319.0,0.01091578]
[1734843025828,0.207585,96346.0,96332.0,0.00103794]
[1734843026830,0.207585,96346.0,96330.0,0.00112354]
[1734843027624,0.207585,96346.0,96331.0,0.207615]
[1734843027828,0.207585,96346.0,96332.0,0.00103794]
[1734843028470,0.207585,96346.0,96333.0,0.0765]
[1734843028666,0.207578,96350.0,96335.0,0.207608]
[1734843029167,0.01920059,96345.0,96335.0,0.207608]
[1734843029371,0.01920059,96345.0,96333.0,0.284113]
[1734843029372,0.01920059,96347.0,96336.0,0.00103794]
[1734843029573,0.09196554,96353.0,96344.0,0.207587]
[1734843029574,0.01920059,96346.0,96344.0,0.207587]
[1734843029845,0.01920059,96345.0,96344.0,0.256987]
[1734843031991,0.01920059,96345.0,96344.0,0.0494]
[1734843032204,0.01920059,96345.0,96339.0,0.00103785]
[1734843032409,0.207591,96343.0,96330.0,8.56e-05]
[1734843032616,0.207603,96338.0,96330.0,8.56e-05]
[1734843032986,0.207598,96340.0,96330.0,8.56e-05]
[1734843033228,0.01920059,96339.0,96330.0,8.56e-05]
[1734843033655,0.01920059,96338.0,96330.0,8.56e-05]
[1734843033939,0.01920059,96338.0,96332.0,0.2076987]
[1734843034178,0.01920059,96337.0,96332.0,0.2076987]
[1734843034531,0.01920059,96337.0,96334.0,0.207611]
[1734843034749,0.01920059,96336.0,96332.0,0.2076987]
[1734843035114,0.01920059,96335.0,96334.0,0.207611]
[1734843035784,0.01920059,96335.0,96334.0,0.213611]
[1734843035990,0.01920059,96335.0,96334.0,0.209611]
[1734843036191,0.01920059,96335.0,96334.0,0.207611]
[1734843036499,0.01920059,96335.0,96334.0,0.212611]
[1734843036711,0.01920059,96335.0,96334.0,0.214611]
[1734843037465,0.01920059,96335.0,96334.0,0.007]
[1734843038662,0.01920059,96335.0,96332.0,8.57e-05]
[1734843039096,0.207601,96339.0,96334.0,0.006]
[1734843039712,0.01919908,96338.0,96334.0,0.004]
[1734843039939,0.01919908,96338.0,96332.0,0.0020857]
[1734843040147,0.01919908,96338.0,96332.0,0.0060857]
[1734843040354,0.01919908,96337.0,96332.0,0.0060857]
[1734843040499,0.207606,96336.0,96332.0,0.0060857]
[1734843040707,0.01919908,96335.0,96332.0,0.0060857]
[1734843041119,0.01919908,96334.0,96332.0,0.0060857]
[1734843041340,0.01919908,96334.0,96332.0,0.0020857]
[1734843041557,0.01919908,96333.0,96332.0,8.57e-05]
[1734843042255,0.01919908,96333.0,96332.0,0.0020857]
[1734843042467,0.01919908,96333.0,96332.0,8.57e-05]
[1734843042975,0.01919908,96333.0,96332.0,0.0020857]
[1734843043368,0.01919908,96333.0,96332.0,0.0030857]
[1734843049492,0.01919908,96333.0,96332.0,0.0020857]
[1734843049692,0.01919908,96333.0,96332.0,8.57e-05]
[1734843050699,0.22681208,96333.0,96332.0,8.57e-05]
[1734843051369,0.22681208,96333.0,96332.0,0.0010857]
[1734843051663,0.22681208,96333.0,96332.0,0.0020857]
[1734843051885,0.22681208,96333.0,96332.0,0.0010857]
[1734843052268,0.22681208,96333.0,96332.0,8.57e-05]
[1734843052588,0.22681208,96333.0,96332.0,0.0010857]
[1734843052928,0.22681208,96333.0,96332.0,8.57e-05]
[1734843053247,0.19181208,96333.0,96332.0,0.0010857]
[1734843053447,0.19181208,96333.0,96332.0,8.57e-05]
[1734843054725,0.19198348,96333.0,96332.0,0.0010857]
[1734843054945,0.19198348,96333.0,96332.0,8.57e-05]
[1734843055369,0.19198348,96333.0,96332.0,0.0010857]
[1734843055570,0.19198348,96333.0,96332.0,8.57e-05]
[1734843055922,0.19198348,96333.0,96332.0,0.0010857]
[1734843056267,0.19198348,96333.0,96332.0,8.57e-05]
[1734843056466,0.19198348,96333.0,96332.0,0.0010857]
[1734843057383,0.53221618,96333.0,96332.0,0.0010857]
[1734843058657,0.19198348,96333.0,96332.0,0.0010857]
[1734843058932,0.19302146,96333.0,96332.0,0.0010857]
[1734843059794,0.19198348,96333.0,96332.0,0.0010857]
[1734843059993,0.19302146,96333.0,96332.0,0.0010857]
[1734843060636,0.19198348,96333.0,96332.0,0.0010857]
[1734843060897,0.5322029,96333.0,96332.0,0.0010857]
[1734843061885,0.33022704,96333.0,96332.0,0.0010857]
[1734843065781,0.53209622,96333.0,96332.0,0.0010857]
[1734843067007,0.19198348,96333.0,96332.0,0.0010857]
[1734843067207,0.19302146,96333.0,96332.0,0.0010857]
[1734843068143,0.19198348,96333.0,96332.0,0.0010857]
[1734843069326,0.33015542,96333.0,96332.0,0.0010857]
[1734843069731,0.33015542,96333.0,96332.0,8.57e-05]
[1734843070158,0.45266105,96333.0,96332.0,8.57e-05]
[1734843070792,0.31248911,96333.0,96332.0,8.57e-05]
[1734843071005,0.21318071,96333.0,96332.0,8.57e-05]
[1734843071217,0.21818071,96333.0,96332.0,8.57e-05]
[1734843071403,0.21118071,96333.0,96332.0,8.57e-05]
[1734843071613,0.21618071,96333.0,96332.0,8.57e-05]
[1734843071814,0.55819733,96333.0,96332.0,8.57e-05]
[1734843072050,0.55319733,96333.0,96332.0,8.57e-05]
[1734843072266,0.80850573,96333.0,96332.0,8.57e-05]
[1734843072469,0.80850573,96333.0,96331.0,8.57e-05]
[1734843072470,0.438017,96331.0,96330.0,1e-06]
[1734843072673,0.5393254,96331.0,96330.0,1e-06]
[1734843072876,0.45721423,96331.0,96330.0,1e-06]
[1734843073290,0.01919723,96331.0,96330.0,1e-06]
[1734843073494,0.01919723,96331.0,96324.0,0.07989128]
[1734843073615,0.41627798,96330.0,96322.0,8.57e-05]
[1734843073816,0.00103798,96330.0,96322.0,8.57e-05]
[1734843074021,0.20763,96325.0,96322.0,8.57e-05]
[1734843074434,0.080202,96324.0,96322.0,8.57e-05]
[1734843074843,0.01919723,96323.0,96322.0,8.57e-05]
[1734843076885,0.22683123,96323.0,96322.0,8.57e-05]
[1734843077668,0.22783123,96323.0,96322.0,8.57e-05]
[1734843077881,0.22683123,96323.0,96322.0,8.57e-05]
[1734843079083,0.22783123,96323.0,96322.0,8.57e-05]
[1734843079281,0.32813963,96323.0,96322.0,8.57e-05]
[1734843079446,0.8180708,96323.0,96322.0,8.57e-05]
[1734843079643,0.8230708,96323.0,96322.0,8.57e-05]
[1734843080298,0.8250708,96323.0,96322.0,8.57e-05]
[1734843080691,0.8200708,96323.0,96322.0,8.57e-05]
[1734843080892,0.8180708,96323.0,96322.0,8.57e-05]
[1734843081091,0.8270708,96323.0,96322.0,8.57e-05]
[1734843081284,0.8220708,96323.0,96322.0,8.57e-05]
[1734843081669,0.8290708,96323.0,96322.0,0.0010857]
[1734843082045,0.8220708,96323.0,96322.0,8.57e-05]
[1734843082179,0.8290708,96323.0,96322.0,0.0010857]
[1734843082379,0.8250708,96323.0,96322.0,8.57e-05]
[1734843082825,0.8360708,96323.0,96322.0,0.0010857]
[1734843083202,0.8320708,96323.0,96322.0,0.0010857]
[1734843083599,0.8360708,96323.0,96322.0,0.0010857]
[1734843084045,0.81687357,96323.0,96322.0,0.0010857]
[1734843084643,0.83605909,96323.0,96322.0,0.0010857]
[1734843085418,0.81687357,96323.0,96322.0,0.0010857]
[1734843085640,0.86675901,96323.0,96322.0,0.0010857]
[1734843086239,0.86275901,96323.0,96322.0,0.0010857]
[1734843086455,0.86675901,96323.0,96322.0,0.0010857]
[1734843086949,0.86275901,96323.0,96322.0,0.0010857]
[1734843087155,0.84875901,96323.0,96322.0,8.57e-05]
[1734843087359,0.85975901,96323.0,96322.0,0.0010857]
[1734843087551,0.85975901,96323.0,96322.0,8.57e-05]
[1734843088010,0.86675901,96323.0,96322.0,0.0010857]
[1734843089043,0.85275901,96323.0,96322.0,8.57e-05]
[1734843089571,0.84875901,96323.0,96322.0,8.57e-05]
[1734843089731,0.15,96322.0,96312.0,0.0001039]
[1734843089883,0.207656,96313.0,96312.0,0.0001039]
[1734843090519,0.25754144,96313.0,96312.0,0.0001039]
[1734843090740,0.25754144,96313.0,96312.0,0.0011039]
[1734843091077,0.207682,96301.0,96300.0,0.036099]
[1734843091414,0.25756744,96301.0,96300.0,0.036099]
[1734843092840,0.25716932,96301.0,96300.0,0.036099]
[1734843093257,0.25716932,96301.0,96300.0,0.037099]
[1734843093688,0.25716932,96301.0,96300.0,0.039099]
[1734843093891,0.25716932,96301.0,96300.0,0.038099]
[1734843094098,0.25716932,96301.0,96300.0,0.039099]
[1734843094276,0.25716932,96301.0,96300.0,0.037099]
[1734843094479,0.25716932,96301.0,96300.0,0.039099]
[1734843094674,0.25716932,96301.0,96300.0,0.038099]
[1734843094932,0.25716932,96301.0,96300.0,0.036099]
[1734843095056,0.25816932,96301.0,96300.0,0.036099]
[1734843098420,0.40816932,96301.0,96300.0,0.036099]
[1734843098842,0.50947772,96301.0,96300.0,0.036099]
[1734843099071,0.5008768,96301.0,96300.0,0.036099]
[1734843101069,0.84004313,96301.0,96300.0,0.036099]
[1734843101628,1.02104313,96301.0,96300.0,0.036099]
[1734843101805,1.14404313,96301.0,96300.0,0.036099]
[1734843102343,1.14404313,96301.0,96300.0,0.0361847]
[1734843102548,0.207701,96292.0,96291.0,0.0001]
[1734843102718,0.4590094,96292.0,96291.0,0.0001]
[1734843102977,0.357701,96292.0,96291.0,0.0001]
[1734843103327,0.40758644,96292.0,96291.0,0.0001]
[1734843103882,0.41658644,96292.0,96291.0,0.0011]
[1734843104093,0.41658644,96292.0,96285.0,8.57e-05]
[1734843104094,0.20888544,96292.0,96282.0,0.0423857]
[1734843104301,0.15,96285.0,96282.0,0.0423857]
[1734843104509,0.15103798,96285.0,96282.0,0.0423857]
[1734843104699,0.22690471,96284.0,96282.0,0.0423857]
[1734843105265,0.01918671,96283.0,96282.0,0.0423857]
[1734843105445,0.01736129,96283.0,96282.0,0.0423857]
[1734843105816,0.01790703,96283.0,96282.0,0.0423857]
[1734843106015,0.01790703,96283.0,96282.0,0.1192857]
[1734843106590,0.01790703,96283.0,96282.0,0.22163261]
[1734843106792,0.00054574,96283.0,96282.0,0.2205941]
[1734843107016,0.09183137,96298.0,96297.0,0.20769]
[1734843107241,0.03069873,96304.0,96297.0,0.4320984]
[1734843107481,0.09183137,96311.0,96303.0,0.207677]
[1734843107658,0.09183137,96311.0,96304.0,0.207675]
[1734843107865,0.09183137,96311.0,96298.0,0.1013084]
[1734843108065,0.09183137,96311.0,96309.0,0.207662]
[1734843108271,0.09183137,96311.0,96305.0,0.207671]
[1734843108444,0.207662,96310.0,96297.0,0.1231]
[1734843108645,0.207662,96310.0,96298.0,0.00103834]
[1734843109054,0.0001714,96313.0,96298.0,0.00103834]
[1734843109279,0.207658,96312.0,96298.0,0.00103834]
[1734843109477,0.00103798,96311.0,96298.0,0.00103834]
[1734843109681,0.207662,96310.0,96298.0,0.00103834]
[1734843109877,0.003,96310.0,96297.0,0.1231]
[1734843110098,0.00103798,96311.0,96298.0,0.00103833]
[1734843110442,0.207664,96309.0,96297.0,0.1231]
[1734843110571,0.00103798,96308.0,96297.0,0.1231]
[1734843110771,0.00103798,96307.0,96288.0,0.0769]
[1734843110990,0.20870898,96306.0,96289.0,0.00103843]
[1734843111186,0.207685,96300.0,96288.0,0.0769]
[1734843111472,0.207688,96298.0,96288.0,0.0769]
[1734843111670,0.00103798,96297.0,96288.0,0.0769]
[1734843111868,0.20585924,96298.0,96288.0,0.0769]
[1734843112093,0.207685,96300.0,96289.0,0.207708]
[1734843112512,0.207676,96304.0,96289.0,0.207708]
[1734843112725,0.03065167,96305.0,96288.0,0.0799]
[1734843112936,0.03065167,96305.0,96299.0,0.0785]
[1734843113108,0.09183137,96315.0,96312.0,0.207658]
[1734843113653,0.09183137,96315.0,96312.0,0.4338664]
[1734843114076,0.09183137,96331.0,96312.0,0.4338664]
[1734843114475,0.09183137,96331.0,96312.0,0.44456745]
[1734843114834,0.207627,96327.0,96312.0,0.00016369]
[1734843115039,0.09183137,96331.0,96312.0,0.00120178]
[1734843115473,0.03064271,96330.0,96312.0,0.00120178]
[1734843115704,0.03064271,96330.0,96312.0,0.18101018]
[1734843115917,0.0011714,96313.0,96312.0,0.18101018]
[1734843116116,0.0021714,96313.0,96312.0,0.18101018]
[1734843116683,0.0001714,96313.0,96312.0,0.23041018]
[1734843116868,0.0001714,96313.0,96312.0,0.22937209]
[1734843116991,0.0001714,96313.0,96312.0,0.23637209]
[1734843117422,0.0001714,96313.0,96312.0,0.22637209]
[1734843117619,0.0001714,96313.0,96312.0,0.22937209]
[1734843118766,0.0011714,96313.0,96312.0,0.23737209]
[1734843119058,0.0011714,96313.0,96312.0,0.22637209]
[1734843119231,0.0021714,96313.0,96312.0,0.23737209]
[1734843119438,0.0011714,96313.0,96312.0,0.23737209]
[1734843119638,0.0001714,96313.0,96312.0,0.22937209]
[1734843119851,0.0011714,96313.0,96312.0,0.23537209]
[1734843120080,0.0011714,96313.0,96312.0,0.13806369]
[1734843120292,0.0011714,96313.0,96312.0,0.13910186]
[1734843120743,0.0011714,96313.0,96312.0,0.24041026]
[1734843120952,0.0011714,96313.0,96312.0,0.23937209]
[1734843122009,0.0011714,96313.0,96312.0,0.01316369]
[1734843122930,0.0011714,96313.0,96312.0,0.00916369]
[1734843123154,0.0001714,96313.0,96312.0,0.00116369]
[1734843123633,0.0001714,96313.0,96312.0,0.00016369]
[1734843125027,0.00120938,96313.0,96312.0,0.00016369]
[1734843125231,0.00105231,96313.0,96312.0,0.00016369]
[1734843126159,0.00405231,96313.0,96312.0,0.00016369]
[1734843126372,0.02218652,96313.0,96312.0,0.00016369]
[1734843126591,0.02518652,96313.0,96312.0,0.00016369]
[1734843126817,0.02318652,96313.0,96312.0,0.00016369]
[1734843127024,0.02230685,96313.0,96312.0,0.00016369]
[1734843127917,0.01930685,96313.0,96312.0,0.00016369]
[1734843128155,0.02230685,96313.0,96312.0,0.00016369]
[1734843128562,0.02030685,96313.0,96312.0,0.00016369]
[1734843128771,0.02530685,96313.0,96312.0,0.00016369]
[1734843129196,0.02330685,96313.0,96312.0,0.00016369]
[1734843129427,0.10360685,96313.0,96312.0,0.00016369]
[1734843129625,0.09960685,96313.0,96312.0,0.00016369]
[1734843131107,0.10260685,96313.0,96312.0,0.00016369]
[1734843131564,0.02230685,96313.0,96312.0,0.00016369]
[1734843133473,0.01372737,96313.0,96312.0,0.00016369]
[1734843134736,0.04437008,96313.0,96312.0,0.00016369]
[1734843134929,0.12267008,96313.0,96312.0,0.00016369]
[1734843138664,0.12284148,96313.0,96312.0,0.00016369]
[1734843138869,0.37414988,96313.0,96312.0,0.00016369]
[1734843139069,0.42274988,96313.0,96312.0,0.00016369]
[1734843140345,0.41974988,96313.0,96312.0,0.00016369]
[1734843140765,0.42674988,96313.0,96312.0,0.00116369]
[1734843140980,0.15,96312.0,96279.0,8.57e-05]
[1734843141183,0.207686,96299.0,96279.0,8.57e-05]
[1734843141562,0.38832871,96299.0,96279.0,8.57e-05]
[1734843143627,0.39332871,96299.0,96279.0,8.57e-05]
[1734843144046,0.39532871,96299.0,96279.0,8.57e-05]
[1734843144533,0.1,96295.0,96279.0,8.57e-05]
[1734843144718,0.43602,96283.0,96279.0,8.57e-05]
[1734843145043,0.5373284,96283.0,96279.0,8.57e-05]
[1734843145250,0.59843712,96283.0,96279.0,8.57e-05]
[1734843145746,0.71754992,96283.0,96279.0,8.57e-05]
[1734843146158,0.2283,96264.0,96250.0,0.0432203]
[1734843146368,0.1,96236.0,96235.0,0.0010427]
[1734843146570,0.1,96232.0,96216.0,0.00059558]
[1734843146981,0.25,96232.0,96216.0,0.00059558]
[1734843147474,0.3513084,96232.0,96216.0,0.00059558]
[1734843147627,0.1,96229.0,96216.0,0.00059558]
[1734843147830,0.15,96227.0,96216.0,0.00059558]
[1734843148030,0.4591524,96226.0,96216.0,0.00059558]
[1734843148445,0.207844,96226.0,96216.0,0.00059558]
[1734843148664,0.207844,96226.0,96215.0,8.57e-05]
[1734843148665,0.54654742,96226.0,96215.0,8.57e-05]
[1734843148884,0.33870342,96226.0,96215.0,8.57e-05]
[1734843149044,0.33870342,96226.0,96216.0,0.1013084]
[1734843149249,0.004,96227.0,96225.0,0.357846]
[1734843149452,0.004,96227.0,96226.0,0.35234749]
[1734843149650,0.004,96227.0,96226.0,0.3513084]
[1734843149857,0.004,96227.0,96226.0,0.1243084]
[1734843150055,0.004,96227.0,96207.0,0.60502554]
[1734843150056,0.207844,96226.0,96225.0,0.001]
[1734843150256,0.207844,96226.0,96205.0,0.1]
[1734843150459,0.003,96226.0,96217.0,0.023]
[1734843150682,0.003,96226.0,96219.0,0.023]
[1734843150883,0.003,96226.0,96221.0,0.207854]
[1734843151094,0.00016351,96232.0,96222.0,0.00103915]
[1734843151278,0.004,96226.0,96222.0,0.00103915]
[1734843151461,0.207846,96225.0,96222.0,0.00103915]
[1734843151830,0.415692,96225.0,96215.0,8.57e-05]
[1734843151958,0.207849,96224.0,96215.0,8.57e-05]
[1734843152612,0.09139107,96227.0,96215.0,8.57e-05]
[1734843152815,0.09139107,96227.0,96217.0,0.023]
[1734843152989,0.09139107,96227.0,96218.0,0.10234757]
[1734843153424,0.002,96224.0,96219.0,0.207859]
[1734843153628,0.002,96224.0,96220.0,0.10234757]
[1734843153824,0.001,96224.0,96220.0,0.10234757]
[1734843154284,0.09139107,96231.0,96220.0,0.10234757]
[1734843154490,0.00016351,96232.0,96220.0,0.10234757]
[1734843155135,0.207833,96231.0,96220.0,0.10234757]
[1734843155334,0.207833,96231.0,96220.0,0.10334757]
[1734843155532,0.00016351,96232.0,96220.0,0.001]
[1734843156314,0.13709437,96223.0,96220.0,0.001]
[1734843156509,0.13709437,96223.0,96215.0,8.57e-05]
[1734843157008,0.5192185,96222.0,96215.0,8.57e-05]
[1734843157445,0.5192185,96222.0,96220.0,0.001]
[1734843157656,0.09110745,96223.0,96215.0,8.57e-05]
[1734843157865,0.09110745,96223.0,96199.0,0.307901]
[1734843158062,0.10110745,96223.0,96215.0,0.001]
[1734843158508,0.09110745,96222.0,96215.0,0.001]
[1734843158845,0.09110745,96222.0,96215.0,0.00096]
[1734843159047,0.207854,96221.0,96215.0,0.00075472]
[1734843159276,0.09110745,96222.0,96204.0,0.02403925]
[1734843159497,0.003,96222.0,96205.0,0.1013084]
[1734843159734,0.207854,96221.0,96206.0,0.00103924]
[1734843159917,0.207854,96221.0,96207.0,0.1013084]
[1734843160133,0.210854,96221.0,96208.0,0.00051964]
[1734843160339,0.09110745,96216.0,96209.0,0.1013084]
[1734843160492,0.09110745,96216.0,96199.0,0.2079]
[1734843160687,0.09110745,96216.0,96200.0,0.1013084]
[1734843160898,0.09110745,96216.0,96201.0,0.00051973]
[1734843160899,0.207867,96215.0,96201.0,0.00051973]
[1734843161306,0.09110745,96211.0,96201.0,0.00051973]
[1734843162130,0.207867,96215.0,96201.0,0.00051973]
[1734843162343,0.09110745,96218.0,96201.0,0.00051973]
[1734843162615,0.207863,96217.0,96201.0,0.00051973]
[1734843162818,0.207867,96215.0,96201.0,0.00051973]
[1734843163020,0.208867,96215.0,96201.0,0.00051973]
[1734843163358,0.207867,96215.0,96201.0,0.00051973]
[1734843163985,0.09110745,96216.0,96202.0,0.3092034]
[1734843164187,0.09110745,96216.0,96202.0,0.09729729]
[1734843164589,0.001,96215.0,96202.0,0.09729729]
[1734843165087,0.09210745,96215.0,96202.0,0.09729729]
[1734843165705,0.09110745,96215.0,96202.0,0.09729729]
[1734843166081,0.09110745,96215.0,96203.0,0.207893]
[1734843166262,0.09110745,96215.0,96203.0,0.1013084]
[1734843166805,0.09210745,96215.0,96203.0,0.1013084]
[1734843167247,0.09110745,96214.0,96203.0,0.1013084]
[1734843168043,0.09110745,96213.0,96203.0,0.1013084]
[1734843169063,0.09110745,96215.0,96203.0,0.1013084]
[1734843169243,0.001,96214.0,96203.0,0.1013084]
[1734843169676,0.09110745,96215.0,96203.0,0.001]
[1734843169926,0.09110745,96215.0,96193.0,0.207914]
[1734843170146,0.09110745,96213.0,96195.0,0.207911]
[1734843170346,0.207874,96212.0,96196.0,0.1013084]
[1734843170679,0.09110745,96213.0,96196.0,0.1013084]
[1734843171301,0.09110745,96206.0,96197.0,0.207906]
[1734843171557,0.09110745,96206.0,96205.0,0.66291454]
[1734843171734,0.09110745,96206.0,96205.0,0.2050084]
[1734843172073,0.09110745,96208.0,96205.0,0.2296084]
[1734843172266,0.0759,96260.0,96219.0,0.207859]
[1734843172467,0.09104509,96249.0,96225.0,0.207846]
[1734843172777,0.09104509,96249.0,96225.0,0.3091544]
[1734843173588,0.00129867,96256.0,96225.0,0.3091544]
[1734843173785,0.09104509,96249.0,96225.0,0.3101544]
[1734843174308,0.00129875,96248.0,96225.0,0.3091544]
[1734843174439,0.0011714,96226.0,96225.0,0.3091544]
[1734843175246,0.0011714,96226.0,96225.0,0.1013084]
[1734843175447,0.0021714,96226.0,96225.0,0.1063084]
[1734843175692,0.0001714,96226.0,96225.0,0.1013084]
[1734843176100,0.0001714,96226.0,96225.0,0.1103084]
[1734843176101,0.0011714,96226.0,96225.0,0.1103084]
[1734843176295,0.0011714,96226.0,96225.0,0.009]
[1734843176449,0.0001714,96226.0,96225.0,0.002]
[1734843176653,0.0011714,96226.0,96225.0,0.007]
[1734843177055,0.0001714,96226.0,96225.0,0.002]
[1734843177271,0.0001714,96226.0,96225.0,0.007]
[1734843177272,0.0011714,96226.0,96225.0,0.007]
[1734843177469,0.0011714,96226.0,96225.0,0.3171544]
[1734843178482,0.01930691,96226.0,96225.0,0.3101544]
[1734843178942,0.02030691,96226.0,96225.0,0.3131544]
[1734843179159,0.01930691,96226.0,96225.0,0.3111544]
[1734843179364,0.0011714,96226.0,96225.0,0.3151544]
[1734843179775,0.0001714,96226.0,96225.0,0.3111544]
[1734843179970,0.0011714,96226.0,96225.0,0.3141544]
[1734843182457,0.0011714,96226.0,96225.0,0.3121544]
[1734843182854,0.0001714,96226.0,96225.0,0.3111544]
[1734843183255,0.0011714,96226.0,96225.0,0.3151544]
[1734843184176,0.0011714,96226.0,96225.0,0.006]
[1734843185030,0.0001714,96226.0,96219.0,8.57e-05]
[1734843185208,0.0001714,96226.0,96220.0,0.1013084]
[1734843185383,0.0031714,96226.0,96220.0,0.1013084]
[1734843185582,0.0011714,96226.0,96220.0,0.1013084]
[1734843185805,0.0001714,96226.0,96223.0,0.20785]
[1734843186011,0.0001714,96226.0,96224.0,0.1013084]
[1734843186229,0.0011714,96226.0,96224.0,0.1013084]
[1734843186607,0.0001714,96226.0,96224.0,0.1013084]
[1734843188019,0.0001714,96226.0,96224.0,0.1043084]
[1734843188450,0.0001714,96226.0,96224.0,0.1023084]
[1734843188661,0.0011714,96226.0,96225.0,0.207846]
[1734843188827,0.0011714,96226.0,96225.0,0.1013084]
[1734843189594,0.0011714,96226.0,96224.0,0.006]
[1734843189723,0.0011714,96226.0,96224.0,0.004]
[1734843189931,0.0001714,96226.0,96219.0,8.57e-05]
[1734843190141,0.0001714,96226.0,96225.0,0.002]
[1734843191346,0.0011714,96226.0,96225.0,0.004]
[1734843191556,0.0021714,96226.0,96219.0,8.57e-05]
[1734843191990,0.0051714,96226.0,96219.0,8.57e-05]
[1734843192145,0.0031714,96226.0,96219.0,8.57e-05]
[1734843192614,0.09104509,96225.0,96219.0,8.57e-05]
[1734843192842,0.29889309,96224.0,96219.0,8.57e-05]
[1734843193042,0.09104509,96220.0,96219.0,8.57e-05]
[1734843193234,0.3423442,96220.0,96219.0,8.57e-05]
[1734843193355,0.3601806,96220.0,96219.0,8.57e-05]
[1734843194130,0.4382806,96220.0,96219.0,8.57e-05]
[1734843194888,0.4422806,96220.0,96219.0,8.57e-05]
[1734843195126,0.4382806,96220.0,96219.0,8.57e-05]
[1734843195331,0.77673422,96220.0,96219.0,8.57e-05]
[1734843195533,0.77673422,96220.0,96193.0,8.58e-05]
[1734843195534,0.09104509,96204.0,96193.0,8.58e-05]
[1734843195692,0.09104509,96204.0,96194.0,0.1013084]
[1734843197706,0.09104509,96204.0,96194.0,0.1023084]
[1734843197919,0.09104509,96206.0,96194.0,0.1023084]
[1734843198117,0.09104509,96204.0,96194.0,0.1013084]
[1734843198341,0.09104509,96204.0,96194.0,0.1023084]
[1734843198637,0.09104509,96204.0,96194.0,0.1033084]
[1734843199258,0.09104509,96205.0,96194.0,0.1033084]
[1734843200720,0.09104509,96205.0,96194.0,0.1023084]
[1734843202173,0.207891,96204.0,96194.0,0.1023084]
[1734843202526,0.207904,96198.0,96194.0,0.1023084]
[1734843202737,0.207904,96198.0,96194.0,0.001]
[1734843203342,0.286004,96198.0,96194.0,0.001]
[1734843203539,0.207908,96196.0,96194.0,0.001]
[1734843203748,0.207908,96196.0,96193.0,8.58e-05]
[1734843204178,0.415816,96196.0,96193.0,8.58e-05]
[1734843204382,0.10129949,96195.0,96193.0,8.58e-05]
[1734843204610,0.10129949,96195.0,96194.0,0.001]
[1734843204783,0.10129949,96195.0,96193.0,8.58e-05]
[1734843204784,0.207913,96194.0,96193.0,8.58e-05]
[1734843205149,0.207913,96194.0,96193.0,0.0010858]
[1734843205357,0.207913,96194.0,96193.0,8.58e-05]
[1734843206760,0.44465809,96194.0,96193.0,0.0010858]
[1734843207113,0.61371001,96194.0,96193.0,0.0010858]
[1734843207290,0.61371001,96194.0,96193.0,0.0020858]
[1734843207699,0.61371001,96194.0,96193.0,8.58e-05]
[1734843207901,0.61371001,96194.0,96193.0,0.0010858]
[1734843208299,0.61371001,96194.0,96193.0,8.58e-05]
[1734843208499,0.61571001,96194.0,96193.0,8.58e-05]
[1734843208962,0.61671001,96194.0,96193.0,8.58e-05]
[1734843209848,0.61371001,96194.0,96193.0,8.58e-05]
[1734843210025,0.59465809,96194.0,96193.0,8.58e-05]
[1734843210241,0.59665809,96194.0,96193.0,8.58e-05]
[1734843211321,0.59765809,96194.0,96193.0,8.58e-05]
[1734843211468,0.6167021,96194.0,96193.0,8.58e-05]
[1734843212079,0.02204401,96194.0,96193.0,8.58e-05]
[1734843212306,0.02204401,96194.0,96193.0,0.2080008]
[1734843212505,0.003,96194.0,96193.0,0.3093092]
[1734843213529,0.003,96194.0,96193.0,0.3913092]
[1734843213956,0.00016342,96198.0,96194.0,0.256811]
[1734843214159,0.00016342,96198.0,96197.0,0.1013084]
[1734843216001,0.00016342,96198.0,96197.0,0.1033084]
[1734843216643,0.00116342,96198.0,96197.0,0.1063084]
[1734843218461,0.00116342,96198.0,96197.0,0.1043084]
[1734843218924,0.00116342,96198.0,96197.0,0.1083084]